lending/lending_fUSD_20250122
["ID","MTS","AMOUNT","RATE_DAILY","PERIOD"]
[349932725,1737516638912,-500.0,0.00021988,2]
[349932726,1737516638925,-787.06,0.00021988,2]
[349932727,1737516638940,-500.0,0.00021988,2]
[349932728,1737516638953,-500.0,0.00021988,2]
[349932729,1737516638966,-506.31351827,0.00021988,2]
[349932730,1737516638978,-639.53961027,0.00021988,2]
[349932731,1737516638992,-500.0,0.00021988,2]
[349932732,1737516639005,-500.0,0.00021988,2]
[349932733,1737516639020,-558.41,0.00021988,2]
[349932734,1737516639033,-500.0,0.00021988,2]
[349932735,1737516639048,-500.0,0.00021988,2]
[349932736,1737516639061,-500.0,0.00021988,2]
[349932737,1737516639074,-565.69029608,0.00021988,2]
[349932738,1737516639089,-500.0,0.00021988,2]
[349932739,1737516639104,-500.0,0.00021988,2]
[349932740,1737516639118,-500.0,0.00021988,2]
[349932741,1737516639131,-508.58804515,0.00021988,2]
[349932742,1737516639144,-500.0,0.00021988,2]
[349932743,1737516639158,-500.0,0.00021988,2]
[349932744,1737516639172,-500.0,0.00021988,2]
[349932745,1737516639184,-500.0,0.00021988,2]
[349932746,1737516639196,-500.0,0.00021988,2]
[349932747,1737516639207,-500.0,0.00021988,2]
[349932748,1737516639220,-500.0,0.00021988,2]
[349932749,1737516639234,-500.0,0.00021988,2]
[349932750,1737516639249,-500.0,0.00021988,2]
[349932751,1737516639260,-500.0,0.00021988,2]
[349932752,1737516639271,-520.69542714,0.00021988,2]
[349932753,1737516639284,-342.46792401,0.00021988,2]
[349932754,1737516639299,-500.0,0.00021988,2]
[349932755,1737516639310,-500.0,0.00021988,2]
[349932756,1737516639321,-500.0,0.00021988,2]
[349932757,1737516639332,-508.28284921,0.00021988,2]
[349932758,1737516639344,-500.0,0.00021988,2]
[349932760,1737516639356,-500.0,0.00021988,2]
[349932762,1737516639368,-500.0,0.00021988,2]
[349932764,1737516639381,-500.0,0.00021988,2]
[349932765,1737516639394,-500.0,0.00021988,2]
[349932766,1737516639406,-515.63786915,0.00021988,2]
[349932767,1737516639419,-500.0,0.00021988,2]
[349932768,1737516639431,-511.54645025,0.00021988,2]
[349932769,1737516639445,-500.0,0.00021989,2]
[349932770,1737516639457,-500.0,0.00021989,2]
[349932771,1737516639470,-540.67,0.00021989,2]
[349932772,1737516639482,-441.2634368,0.00021989,2]
[349932773,1737516639494,-500.0,0.00021989,2]
[349932774,1737516639505,-500.0,0.00021989,2]
[349932775,1737516639518,-500.0,0.00021989,2]
[349932776,1737516639531,-500.0,0.00021989,2]
[349932777,1737516639542,-500.0,0.00021989,2]
[349932778,1737516639554,-500.0,0.00021989,2]
[349932779,1737516639566,-500.0,0.00021989,2]
[349932780,1737516639577,-564.26,0.00021989,2]
[349932781,1737516639589,-1212.04,0.00021989,2]
[349932782,1737516639604,-521.87885779,0.00021989,2]
[349932783,1737516639619,-500.13,0.00021989,2]
[349932784,1737516639631,-500.0,0.00021989,2]
[349932785,1737516639642,-500.0,0.00021989,2]
[349932786,1737516639654,-1206.0,0.00021989,2]
[349932787,1737516639666,-792.99,0.00021989,2]
[349932788,1737516639678,-500.0,0.00021989,2]
[349932789,1737516639690,-971.7,0.00021989,2]
[349932790,1737516639702,-945.49,0.00021989,2]
[349932791,1737516639713,-1212.9,0.00021989,2]
[349932792,1737516639725,-784.15,0.00021989,2]
[349932793,1737516639737,-979.68,0.00021989,2]
[349932794,1737516639749,-500.0,0.00021989,2]
[349932795,1737516639761,-1104.92,0.00021989,2]
[349932796,1737516639772,-696.79,0.00021989,2]
[349932797,1737516639784,-500.0,0.00021989,2]
[349932798,1737516639798,-500.0,0.00021989,2]
[349932799,1737516639810,-500.0,0.00021989,2]
[349932800,1737516639821,-974.15,0.00021989,2]
[349932801,1737516639833,-500.0,0.00021989,2]
[349932802,1737516639845,-500.0,0.00021989,2]
[349932803,1737516639856,-500.0,0.00021989,2]
[349932804,1737516639869,-500.0,0.00021989,2]
[349932805,1737516639881,-500.0,0.00021989,2]
[349932806,1737516639893,-500.0,0.00021989,2]
[349932807,1737516639905,-500.0,0.00021989,2]
[349932808,1737516639917,-539.51,0.00021989,2]
[349932809,1737516639928,-500.0,0.00021989,2]
[349932810,1737516639940,-722.13,0.00021989,2]
[349932811,1737516639952,-500.0,0.00021989,2]
[349932812,1737516639964,-500.0,0.00021989,2]
[349932813,1737516639975,-500.0,0.00021989,2]
[349932814,1737516639988,-500.0,0.00021989,2]
[349932815,1737516640000,-500.0,0.00021989,2]
[349932816,1737516640012,-500.0,0.00021989,2]
[349932817,1737516640023,-500.0,0.00021989,2]
[349932818,1737516640036,-500.0,0.00021989,2]
[349932819,1737516640049,-500.0,0.00021989,2]
[349932820,1737516640061,-578.94,0.00021989,2]
[349932821,1737516640073,-1324.28,0.00021989,2]
[349932822,1737516640085,-1074.69,0.00021989,2]
[349932823,1737516640097,-1321.9,0.00021989,2]
[349932824,1737516640109,-1005.67,0.00021989,2]
[349932825,1737516640120,-500.0,0.00021989,2]
[349932826,1737516640133,-500.0,0.00021989,2]
[349932827,1737516640145,-500.0,0.00021989,2]
[349932828,1737516640157,-500.0,0.00021989,2]
[349932829,1737516640170,-500.0,0.00021989,2]
[349932830,1737516640182,-500.0,0.00021989,2]
[349932831,1737516640193,-500.0,0.00021989,2]
[349932832,1737516640205,-500.0,0.00021989,2]
[349932833,1737516640217,-500.0,0.00021989,2]
[349932834,1737516640228,-677.37,0.00021989,2]
[349932835,1737516640240,-500.0,0.00021989,2]
[349932836,1737516640252,-500.0,0.00021989,2]
[349932837,1737516640265,-500.0,0.00021989,2]
[349932838,1737516640277,-500.0,0.00021989,2]
[349932839,1737516640289,-572.81,0.00021989,2]
[349932840,1737516640302,-500.0,0.00021989,2]
[349932841,1737516640313,-887.53,0.00021989,2]
[349932842,1737516640325,-544.0,0.00021989,2]
[349932843,1737516640337,-850.25,0.00021989,2]
[349932844,1737516640349,-500.0,0.00021989,2]
[349932845,1737516640361,-569.09555085,0.0002199,2]
[349932846,1737516640372,-500.0,0.0002199,2]
[349932847,1737516640384,-200.0,0.0002199,8]
[349932848,1737516640396,-196.64612399,0.0002199,2]
[349932849,1737516640407,-196.64612399,0.0002199,2]
[349932850,1737516640419,-196.64612399,0.0002199,2]
[349932851,1737516640431,-528.2180648,0.00021997,2]
[349932852,1737516640442,-15790.33886597,0.00021998,2]
[349932853,1737516640454,-691.3754,0.00021999,2]
[349932854,1737516640466,-535.42,0.00021999,2]
[349932855,1737516640478,-999.0,0.00021999,2]
[349932856,1737516640490,-595.0,0.00022,2]
[349932857,1737516640504,-374530.4851706,0.00022,2]
[349932858,1737516640518,-540195.11858138,0.00022,2]
[349932859,1737516641017,-510015.29669267,0.00022,2]
[349932860,1737516641637,-275.385,0.00021389,2]
[349932861,1737516641647,-320.34894242,0.00021762,2]
[349932862,1737516641656,-1284.322,0.00021795,2]
[349932863,1737516641665,-568.89179852,0.00021833,2]
[349932864,1737516641674,-500.0,0.00021833,2]
[349932865,1737516641683,-553.56,0.00021834,2]
[349932866,1737516641692,-500.0,0.00021835,2]
[349932867,1737516641701,-4487.18868664,0.00022,2]
[349932868,1737516641710,-1013562.60228985,0.00022,2]
[349932869,1737516641721,-331467.46101618,0.00022,2]
[349932870,1737516641736,-3182.59743435,0.00022,2]
[349932871,1737516641748,-355.17091682,0.00022,2]
[349932872,1737516641759,-1105.0,0.00022,2]
[349932873,1737516641774,-500.0,0.00021988,2]
[349932874,1737516641783,-10485.55453406,0.00022,2]
[349932875,1737516641797,-70047.5,0.00022,2]
[349932876,1737516641906,-250.7821,0.00021695,2]
[349932877,1737516641916,-1486.96702149,0.000219,3]
[349932878,1737516641927,-3149.86989992,0.00021973,2]
[349932879,1737516641938,-5723.82851569,0.00022,2]
[349932880,1737516641953,-150.544,0.00021795,2]
[349932881,1737516641962,-131998.60337247,0.00022,2]
[349932882,1737516641977,-442.54964062,0.00022,2]
[349932883,1737516641988,-1906.35,0.00022,2]
[349932884,1737516641999,-911.57510985,0.00022,2]
[349932885,1737516642011,-1457.32929004,0.00022,2]
[349932886,1737516642022,-2115.0,0.00022,2]
[349932895,1737516642608,-500.0,0.00021715,2]
[349932896,1737516642619,-1566.37,0.00021835,2]
[349932897,1737516642629,-513.86141558,0.00021988,2]
[349932898,1737516642639,-500.0,0.00021989,2]
[349932899,1737516642650,-7415.69906902,0.00022,2]
[349932900,1737516642661,-3704.03292685,0.00022,2]
[349932901,1737516642715,-9836.2,0.00022,2]
[349932902,1737516642825,-40848.43131769,0.00022,2]
[349932916,1737516645691,-437.79,0.00021178,2]
[349932917,1737516645701,-150.0,0.00021178,2]
[349932918,1737516645710,-4905.65688536,0.00021735,2]
[349932919,1737516645747,-94.34311464,0.00021735,2]
[349932920,1737516645757,-150.81440385,0.00021742,2]
[349932921,1737516645767,-496.65398152,0.00021795,2]
[349932923,1737516645811,-150.0,0.00021768,2]
[349932924,1737516645821,-139.34601848,0.00021795,2]
[349932925,1737516645831,-1495.58,0.00021834,2]
[349932926,1737516645849,-500.0,0.00021834,2]
[349932927,1737516645867,-150.0,0.00021893,2]
[349932928,1737516645878,-150.0,0.00021971,2]
[349932929,1737516645888,-150.0,0.00021972,2]
[349932930,1737516645898,-500.0,0.00021988,2]
[349932931,1737516645908,-27374.01829302,0.00022,2]
[349932935,1737517141012,5999.0,0.00024,120]
[349932936,1737517213301,5148.0,0.00024,120]
[349932937,1737517262922,161.2,0.00010137,2]
[349932940,1737517590462,431.012212,0.00024,120]
[349932953,1737517831674,-500.0,0.00019164,2]
[349932954,1737517831684,-500.0,0.00019164,2]
[349932955,1737517831694,-158.13844959,0.00019636,2]
[349932956,1737517831704,-470.13,0.00019721,2]
[349932957,1737517831714,-1500.0,0.00019731,2]
[349932958,1737517831724,-166.51,0.00019736,2]
[349932959,1737517831735,-1000.0,0.00019744,2]
[349932960,1737517831745,-250.0,0.00019759,2]
[349932961,1737517831754,-300.7,0.00019783,2]
[349932962,1737517831764,-250.0,0.00019821,2]
[349932963,1737517831774,-250.0,0.00019843,2]
[349932964,1737517831784,-165.72,0.00019899,30]
[349932965,1737517831793,-150.0,0.00020578,2]
[349932966,1737517831802,-7890.17,0.00020674,2]
[349932967,1737517831812,-7890.17,0.00020679,2]
[349932968,1737517831821,-7890.17,0.00020685,2]
[349932969,1737517831831,-7890.17,0.0002069,2]
[349932970,1737517831840,-7890.17,0.00020696,2]
[349932971,1737517831850,-1704.7038227,0.00020701,2]
[349932972,1737517831866,-498.92723845,0.00020701,2]
[349932973,1737517831885,-379.99999,0.00020701,2]
[349932974,1737517831918,-5306.53894885,0.00020701,2]
[349932975,1737517831928,-7890.17,0.00020706,2]
[349932976,1737517831938,-7890.17,0.00020712,2]
[349932977,1737517831947,-7890.17,0.00020717,2]
[349932978,1737517831957,-7890.17,0.00020723,2]
[349932979,1737517831968,-7890.17,0.00020728,2]
[349932980,1737517831977,-7890.17,0.00020734,2]
[349932981,1737517831987,-200.0,0.00020739,2]
[349932982,1737517831996,-102658.96957529,0.00020739,2]
[349932983,1737517832006,-7890.17,0.00020739,2]
[349932984,1737517832016,-2333.59112305,0.00020745,2]
[349932985,1737517832028,-5556.57887695,0.00020745,2]
[349932986,1737517832038,-7890.17,0.0002075,2]
[349932987,1737517832047,-3927.51699185,0.00020756,2]
[349932988,1737517832059,-3962.65300815,0.00020756,2]
[349932989,1737517832069,-500.0,0.0002076,2]
[349932990,1737517832079,-4152.64,0.0002076,2]
[349932991,1737517832089,-1277.65,0.0002076,2]
[349932992,1737517832099,-911.23,0.0002076,2]
[349932993,1737517832109,-788.55,0.0002076,2]
[349932994,1737517832120,-500.0,0.0002076,2]
[349932995,1737517832129,-848.94,0.0002076,2]
[349932997,1737517832138,-500.0,0.0002076,2]
[349932999,1737517832148,-1007.5,0.0002076,2]
[349933001,1737517832157,-1650.92,0.0002076,2]
[349933003,1737517832168,-1639.95,0.0002076,2]
[349933004,1737517832180,-1231.73,0.0002076,2]
[349933006,1737517832190,-1891.24,0.0002076,2]
[349933008,1737517832199,-500.0,0.0002076,2]
[349933010,1737517832210,-2235.04,0.0002076,2]
[349933012,1737517832220,-602.03,0.0002076,2]
[349933014,1737517832229,-2633.22,0.0002076,2]
[349933016,1737517832239,-500.0,0.0002076,2]
[349933018,1737517832250,-1245.09,0.0002076,2]
[349933020,1737517832259,-1127.42,0.0002076,2]
[349933022,1737517832269,-500.0,0.0002076,2]
[349933024,1737517832278,-4343.49,0.0002076,2]
[349933026,1737517832288,-500.0,0.0002076,2]
[349933028,1737517832296,-1304.13,0.0002076,2]
[349933030,1737517832306,-600.64,0.0002076,2]
[349933031,1737517832315,-530.49,0.0002076,2]
[349933034,1737517832325,-785.49,0.0002076,2]
[349933036,1737517832335,-500.0,0.0002076,2]
[349933038,1737517832344,-1454.09,0.0002076,2]
[349933040,1737517832354,-645.76571302,0.0002076,2]
[349933042,1737517832365,-7890.17,0.00020761,2]
[349933044,1737517832374,-500.0,0.00020766,2]
[349933046,1737517832384,-500.0,0.00020766,2]
[349933048,1737517832394,-500.0,0.00020766,2]
[349933050,1737517832403,-500.0,0.00020766,2]
[349933052,1737517832412,-500.0,0.00020766,2]
[349933054,1737517832423,-500.0,0.00020766,2]
[349933056,1737517832433,-500.0,0.00020766,2]
[349933058,1737517832443,-349.3100346,0.00020766,2]
[349933060,1737517832451,-500.0,0.00020766,2]
[349933062,1737517832461,-500.0,0.00020766,2]
[349933064,1737517832470,-500.0,0.00020766,2]
[349933066,1737517832481,-500.0,0.00020766,2]
[349933068,1737517832490,-500.0,0.00020766,2]
[349933069,1737517832499,-520.58104243,0.00020766,2]
[349933071,1737517832509,-500.0,0.00020766,2]
[349933073,1737517832519,-500.0,0.00020766,2]
[349933074,1737517832529,-552.02367634,0.00020766,2]
[349933075,1737517832538,-500.0,0.00020766,2]
[349933076,1737517832547,-500.0,0.00020766,2]
[349933077,1737517832557,-500.0,0.00020766,2]
[349933078,1737517832566,-500.0,0.00020766,2]
[349933079,1737517832576,-500.0,0.00020766,2]
[349933080,1737517832586,-500.0,0.00020766,2]
[349933081,1737517832596,-500.0,0.00020766,2]
[349933082,1737517832606,-200.0,0.00020766,2]
[349933083,1737517832618,-500.0,0.00020766,2]
[349933084,1737517832628,-500.0,0.00020766,2]
[349933085,1737517832638,-389.786562,0.00020766,2]
[349933086,1737517832647,-500.0,0.00020766,2]
[349933087,1737517832657,-500.0,0.00020766,2]
[349933089,1737517832666,-500.0,0.00020766,2]
[349933091,1737517832675,-500.0,0.00020766,2]
[349933093,1737517832684,-500.0,0.00020766,2]
[349933095,1737517832694,-708.41,0.00020766,2]
[349933097,1737517832703,-500.0,0.00020766,2]
[349933099,1737517832712,-500.0,0.00020766,2]
[349933101,1737517832722,-500.0,0.00020766,2]
[349933103,1737517832731,-500.0,0.00020766,2]
[349933104,1737517832741,-500.0,0.00020766,2]
[349933105,1737517832751,-500.0,0.00020766,2]
[349933106,1737517832761,-500.0,0.00020766,2]
[349933107,1737517832771,-500.0,0.00020766,2]
[349933108,1737517832780,-500.0,0.00020766,2]
[349933109,1737517832791,-500.0,0.00020766,2]
[349933110,1737517832801,-500.0,0.00020766,2]
[349933111,1737517832811,-500.0,0.00020766,2]
[349933112,1737517832821,-500.0,0.00020766,2]
[349933113,1737517832831,-500.0,0.00020766,2]
[349933114,1737517832841,-193.36347723,0.00020766,2]
[349933115,1737517832850,-500.0,0.00020766,2]
[349933116,1737517832862,-525.36,0.00020766,2]
[349933117,1737517832872,-515.08943661,0.00020766,2]
[349933118,1737517832882,-500.0,0.00020766,2]
[349933119,1737517832892,-7890.17,0.00020766,2]
[349933120,1737517832903,-7890.17,0.00020772,2]
[349933121,1737517832912,-7890.17,0.00020777,2]
[349933122,1737517832922,-621.09,0.00020784,2]
[349933123,1737517832932,-23900.0,0.00020784,2]
[349933124,1737517832942,-422.38,0.00020784,2]
[349933125,1737517832952,-1384.24269235,0.00020785,2]
[349933126,1737517833168,-200.0,0.00020793,2]
[349933127,1737517833181,-200.0,0.00020795,2]
[349933128,1737517833191,-1274.93553939,0.00020809,2]
[349933129,1737517833201,-388.85282034,0.0002081,2]
[349933130,1737517833211,-388.85282034,0.00020813,2]
[349933131,1737517833221,-1384.24269235,0.00020814,2]
[349933132,1737517833231,-1384.24269235,0.00020824,2]
[349933133,1737517833241,-1107.97720692,0.00020826,2]
[349933134,1737517833254,-200.0,0.00020827,2]
[349933135,1737517833265,-1107.97720692,0.00020827,2]
[349933136,1737517833275,-1107.97720692,0.00020829,2]
[349933137,1737517833285,-200.0,0.00020832,2]
[349933138,1737517833295,-1384.24269235,0.00020835,2]
[349933139,1737517833304,-1274.93553939,0.00020836,2]
[349933140,1737517833314,-1107.97720692,0.00020837,2]
[349933141,1737517833324,-200.0,0.00020838,2]
[349933142,1737517833334,-4739.42753405,0.00020849,2]
[349933143,1737517833344,-1274.93553939,0.00020858,2]
[349933144,1737517833354,-4739.42753405,0.00020861,2]
[349933145,1737517833365,-200.0,0.00020862,2]
[349933146,1737517833376,-200.0,0.00020864,2]
[349933147,1737517833385,-4739.42753405,0.00020869,2]
[349933148,1737517833395,-1274.93553939,0.00020872,2]
[349933149,1737517833406,-221.97,0.00020873,2]
[349933150,1737517833416,-150.0,0.00020878,2]
[349933151,1737517833425,-200.0,0.00020879,2]
[349933152,1737517833434,-4739.42753405,0.00020884,2]
[349933153,1737517833444,-1107.97720692,0.00020886,2]
[349933154,1737517833454,-200.0,0.00020887,2]
[349933155,1737517833464,-398.804387,0.00020888,12]
[349933156,1737517833474,-388.85282034,0.00020895,2]
[349933157,1737517833484,-1274.93553939,0.000209,2]
[349933158,1737517833494,-1384.24269235,0.00020915,2]
[349933159,1737517833504,-200.0,0.00020917,2]
[349933160,1737517833514,-388.85282034,0.00020932,2]
[349933161,1737517833524,-4739.42753405,0.00020938,2]
[349933162,1737517833534,-200.0,0.00020942,2]
[349933163,1737517833545,-388.85282034,0.00020944,2]
[349933164,1737517833554,-2048.0,0.00021,7]
[349933165,1737517833564,-1804.0,0.00021,2]
[349933166,1737517833574,-500.0,0.00021034,2]
[349933167,1737517833585,-4152.64,0.00021034,2]
[349933168,1737517833595,-1277.65,0.00021034,2]
[349933169,1737517833604,-911.23,0.00021034,2]
[349933170,1737517833615,-788.55,0.00021034,2]
[349933171,1737517833624,-500.0,0.00021034,2]
[349933172,1737517833634,-848.94,0.00021034,2]
[349933173,1737517833645,-500.0,0.00021034,2]
[349933174,1737517833655,-1007.5,0.00021034,2]
[349933175,1737517833666,-1650.92,0.00021034,2]
[349933176,1737517833676,-1639.95,0.00021034,2]
[349933177,1737517833689,-1231.73,0.00021034,2]
[349933178,1737517833699,-1891.24,0.00021034,2]
[349933179,1737517833709,-2235.04,0.00021034,2]
[349933180,1737517833719,-602.03,0.00021034,2]
[349933181,1737517833729,-2633.22,0.00021034,2]
[349933182,1737517833739,-500.0,0.00021034,2]
[349933183,1737517833749,-1245.09,0.00021034,2]
[349933184,1737517833759,-1127.42,0.00021034,2]
[349933185,1737517833769,-500.0,0.00021034,2]
[349933186,1737517833779,-4343.49,0.00021034,2]
[349933187,1737517833788,-500.0,0.00021034,2]
[349933188,1737517833798,-1304.13,0.00021034,2]
[349933189,1737517833807,-600.64,0.00021034,2]
[349933190,1737517833825,-530.49,0.00021034,2]
[349933191,1737517833834,-785.49,0.00021034,2]
[349933192,1737517833844,-500.0,0.00021034,2]
[349933193,1737517833854,-1454.09,0.00021034,2]
[349933194,1737517833866,-500.0,0.0002104,2]
[349933195,1737517833876,-500.0,0.0002104,2]
[349933196,1737517833886,-500.0,0.0002104,2]
[349933197,1737517833896,-500.0,0.0002104,2]
[349933198,1737517833906,-500.0,0.0002104,2]
[349933199,1737517833916,-500.0,0.0002104,2]
[349933200,1737517833926,-500.0,0.0002104,2]
[349933201,1737517833936,-500.0,0.0002104,2]
[349933202,1737517833945,-500.0,0.0002104,2]
[349933203,1737517833955,-194.83362128,0.0002104,2]
[349933204,1737517833965,-262.38954641,0.0002104,2]
[349933205,1737517833975,-532.5995763,0.0002104,2]
[349933206,1737517833985,-500.0,0.0002104,2]
[349933207,1737517833995,-500.0,0.0002104,2]
[349933208,1737517834005,-500.0,0.0002104,2]
[349933209,1737517834014,-500.0,0.0002104,2]
[349933210,1737517834024,-500.0,0.0002104,2]
[349933211,1737517834034,-433.5518069,0.0002104,2]
[349933212,1737517834043,-500.0,0.0002104,2]
[349933213,1737517834053,-200.0,0.0002104,2]
[349933214,1737517834063,-500.0,0.0002104,2]
[349933215,1737517834074,-500.0,0.0002104,2]
[349933216,1737517834084,-500.0,0.0002104,2]
[349933217,1737517834095,-500.0,0.0002104,2]
[349933218,1737517834105,-500.0,0.0002104,2]
[349933219,1737517834117,-500.0,0.0002104,2]
[349933220,1737517834127,-500.0,0.0002104,2]
[349933221,1737517834137,-708.41,0.0002104,2]
[349933222,1737517834146,-500.0,0.0002104,2]
[349933223,1737517834156,-505.76185655,0.0002104,2]
[349933224,1737517834167,-500.0,0.0002104,2]
[349933225,1737517834181,-500.0,0.0002104,2]
[349933226,1737517834191,-500.0,0.0002104,2]
[349933227,1737517834200,-500.0,0.0002104,2]
[349933228,1737517834210,-518.6711526,0.0002104,2]
[349933229,1737517834220,-509.4330323,0.0002104,2]
[349933230,1737517834229,-500.0,0.0002104,2]
[349933231,1737517834239,-527.28281463,0.0002104,2]
[349933232,1737517834250,-500.0,0.0002104,2]
[349933233,1737517834261,-500.0,0.0002104,2]
[349933234,1737517834271,-500.0,0.0002104,2]
[349933235,1737517834280,-500.0,0.0002104,2]
[349933236,1737517834289,-500.0,0.0002104,2]
[349933237,1737517834299,-525.36,0.0002104,2]
[349933238,1737517834308,-514.19791576,0.0002104,2]
[349933239,1737517834318,-150.0,0.00021078,2]
[349933240,1737517834329,-437.79,0.00021078,2]
[349933241,1737517834339,-437.79,0.00021078,2]
[349933242,1737517834349,-150.0,0.00021078,2]
[349933243,1737517834359,-150.82,0.00021092,2]
[349933244,1737517834369,-500.0,0.00021178,2]
[349933245,1737517834380,-150.0,0.00021178,2]
[349933246,1737517834390,-437.79,0.00021178,2]
[349933247,1737517834400,-150.0,0.00021178,2]
[349933248,1737517834409,-437.79,0.00021178,2]
[349933249,1737517834419,-437.79,0.00021178,2]
[349933250,1737517834429,-150.0,0.00021178,2]
[349933251,1737517834439,-150.0,0.000212,2]
[349933252,1737517834449,-500.0,0.00021308,2]
[349933253,1737517834459,-4152.64,0.00021308,2]
[349933254,1737517834469,-1277.65,0.00021308,2]
[349933255,1737517834479,-911.23,0.00021308,2]
[349933256,1737517834488,-788.55,0.00021308,2]
[349933257,1737517834499,-500.0,0.00021308,2]
[349933258,1737517834509,-848.94,0.00021308,2]
[349933259,1737517834520,-500.0,0.00021308,2]
[349933260,1737517834530,-1007.5,0.00021308,2]
[349933261,1737517834539,-1650.92,0.00021308,2]
[349933262,1737517834549,-1639.95,0.00021308,2]
[349933263,1737517834559,-1891.24,0.00021308,2]
[349933264,1737517834569,-2235.04,0.00021308,2]
[349933265,1737517834579,-602.03,0.00021308,2]
[349933266,1737517834589,-2633.22,0.00021308,2]
[349933267,1737517834599,-500.0,0.00021308,2]
[349933268,1737517834608,-1245.09,0.00021308,2]
[349933269,1737517834618,-1127.42,0.00021308,2]
[349933270,1737517834627,-603.1315304,0.00021308,2]
[349933271,1737517834637,-4343.49,0.00021308,2]
[349933272,1737517834647,-500.0,0.00021308,2]
[349933273,1737517834657,-1304.13,0.00021308,2]
[349933274,1737517834667,-600.64,0.00021308,2]
[349933275,1737517834677,-530.49,0.00021308,2]
[349933276,1737517834686,-785.49,0.00021308,2]
[349933277,1737517834695,-500.0,0.00021308,2]
[349933278,1737517834705,-1454.09,0.00021308,2]
[349933279,1737517834715,-500.0,0.00021314,2]
[349933280,1737517834725,-500.0,0.00021314,2]
[349933281,1737517834735,-500.0,0.00021314,2]
[349933282,1737517834744,-500.0,0.00021314,2]
[349933283,1737517834754,-367.74814023,0.00021314,2]
[349933284,1737517834764,-500.0,0.00021314,2]
[349933285,1737517834774,-500.0,0.00021314,2]
[349933286,1737517834783,-500.0,0.00021314,2]
[349933287,1737517834793,-500.0,0.00021314,2]
[349933288,1737517834803,-509.18855173,0.00021314,2]
[349933289,1737517834813,-503.32306957,0.00021314,2]
[349933290,1737517834822,-504.79858222,0.00021314,2]
[349933291,1737517834832,-500.0,0.00021314,2]
[349933292,1737517834842,-201.66266864,0.00021314,2]
[349933293,1737517834852,-500.0,0.00021314,2]
[349933294,1737517834861,-500.0,0.00021314,2]
[349933295,1737517834871,-500.0,0.00021314,2]
[349933296,1737517834881,-500.0,0.00021314,2]
[349933297,1737517834890,-500.0,0.00021314,2]
[349933298,1737517834901,-513.40968893,0.00021314,2]
[349933299,1737517834911,-500.0,0.00021314,2]
[349933300,1737517834921,-708.41,0.00021314,2]
[349933301,1737517834930,-500.0,0.00021314,2]
[349933302,1737517834939,-500.0,0.00021314,2]
[349933303,1737517834949,-500.0,0.00021314,2]
[349933304,1737517834958,-500.0,0.00021314,2]
[349933305,1737517834969,-500.0,0.00021314,2]
[349933306,1737517834978,-500.0,0.00021314,2]
[349933307,1737517834988,-500.0,0.00021314,2]
[349933308,1737517834997,-525.36,0.00021314,2]
[349933309,1737517835007,-500.0,0.00021356,2]
[349933310,1737517835017,-4756.0,0.00021399,2]
[349933311,1737517835027,-1019.0,0.000214,2]
[349933312,1737517835037,-300.42,0.00021452,2]